[Event "*** Titled Tuesday 3|2 Blitz"]
[Site "Chess.com"]
[Date "2016.01.05"]
[Round "3"]
[White "Malev212"]
[Black "RitchieBlackmore"]
[Result "1-0"]
[WhiteElo "2277"]
[BlackElo "2414"]
[TimeControl "180+2"]
[EndTime "11:35:48 PST"]
[Termination "Malev212 won by checkmate"]

1. Nf3 {[%clk 0:03:01.9]} 1... Nf6 {[%clk 0:02:55.9]} 2. c4 {[%clk 0:02:58.2]}
2... g6 {[%clk 0:02:57]} 3. Nc3 {[%clk 0:02:56.3]} 3... Bg7 {[%clk 0:02:58.4]}
4. e4 {[%clk 0:02:56.1]} 4... d6 {[%clk 0:02:59]} 5. d4 {[%clk 0:02:56.9]} 5...
O-O {[%clk 0:02:59.8]} 6. Be2 {[%clk 0:02:57.8]} 6... Qe8 {[%clk 0:02:57.9]} 7.
O-O {[%clk 0:02:58.3]} 7... e5 {[%clk 0:02:59.2]} 8. d5 {[%clk 0:02:42.9]} 8...
Nfd7 {[%clk 0:02:59.7]} 9. Nb5 {[%clk 0:02:32.8]} 9... Na6 {[%clk 0:02:58.3]}
10. Bd2 {[%clk 0:02:23.1]} 10... f5 {[%clk 0:02:55.3]} 11. exf5 {[%clk
0:02:19.5]} 11... gxf5 {[%clk 0:02:55.4]} 12. Ng5 {[%clk 0:02:16.2]} 12... Nf6
{[%clk 0:02:28.2]} 13. c5 {[%clk 0:02:09.4]} 13... h6 {[%clk 0:02:10]} 14. Ne6
{[%clk 0:02:09.1]} 14... Bxe6 {[%clk 0:02:10.2]} 15. dxe6 {[%clk 0:02:09.9]}
15... Qxe6 {[%clk 0:02:11.3]} 16. cxd6 {[%clk 0:02:09.6]} 16... cxd6 {[%clk
0:02:13.2]} 17. Nxd6 {[%clk 0:02:08.4]} 17... Kh8 {[%clk 0:02:01]} 18. Nxb7
{[%clk 0:01:51.7]} 18... Nc7 {[%clk 0:01:55.6]} 19. Rc1 {[%clk 0:01:48.5]} 19...
Ncd5 {[%clk 0:01:53.6]} 20. Bc4 {[%clk 0:01:43.8]} 20... Rab8 {[%clk 0:01:44.2]}
21. Nc5 {[%clk 0:01:42.9]} 21... Qd6 {[%clk 0:01:32.4]} 22. Na6 {[%clk
0:01:09.4]} 22... Rxb2 {[%clk 0:01:19.1]} 23. Bb4 {[%clk 0:01:09.4]} 23... Rxb4
{[%clk 0:01:15.8]} 24. Nxb4 {[%clk 0:01:07.6]} 24... Qxb4 {[%clk 0:01:17.7]} 25.
Bxd5 {[%clk 0:01:07.4]} 25... Rd8 {[%clk 0:01:19.4]} 26. Qf3 {[%clk 0:00:58.9]}
26... Nxd5 {[%clk 0:01:09.7]} 27. Rfd1 {[%clk 0:00:55.9]} 27... Qd6 {[%clk
0:00:57.5]} 28. Qxf5 {[%clk 0:00:54.1]} 28... Qf8 {[%clk 0:00:31.3]} 29. Qxf8+
{[%clk 0:00:47.5]} 29... Bxf8 {[%clk 0:00:32.2]} 30. Rc2 {[%clk 0:00:35.8]}
30... Rb8 {[%clk 0:00:24.9]} 31. g3 {[%clk 0:00:31.1]} 31... Nf6 {[%clk
0:00:22.7]} 32. Rc7 {[%clk 0:00:30.3]} 32... a5 {[%clk 0:00:21.8]} 33. Rf7
{[%clk 0:00:27.5]} 33... Ne4 {[%clk 0:00:12.9]} 34. Re1 {[%clk 0:00:26.2]} 34...
Ng5 {[%clk 0:00:13.5]} 35. Rf5 {[%clk 0:00:27.1]} 35... e4 {[%clk 0:00:14.3]}
36. Kg2 {[%clk 0:00:26]} 36... Bg7 {[%clk 0:00:07.1]} 37. h4 {[%clk 0:00:26.1]}
37... Ne6 {[%clk 0:00:08.2]} 38. Rxe4 {[%clk 0:00:26.3]} 38... Nd4 {[%clk
0:00:09.9]} 39. Rxa5 {[%clk 0:00:25.7]} 39... Rb2 {[%clk 0:00:09.4]} 40. Ra8+
{[%clk 0:00:25.1]} 40... Kh7 {[%clk 0:00:10.5]} 41. Ra7 {[%clk 0:00:26.2]} 41...
Nf5 {[%clk 0:00:10.4]} 42. Rf4 {[%clk 0:00:25.7]} 42... Nd6 {[%clk 0:00:10.9]}
43. Rf6 {[%clk 0:00:25.3]} 43... Rxa2 {[%clk 0:00:06.4]} 44. Rxg7+ {[%clk
0:00:21.3]} 44... Kxg7 {[%clk 0:00:07.7]} 45. Rxd6 {[%clk 0:00:22.2]} 45... Ra7
{[%clk 0:00:09.6]} 46. h5 {[%clk 0:00:22.8]} 46... Kh7 {[%clk 0:00:11.2]} 47. f4
{[%clk 0:00:23.5]} 47... Rb7 {[%clk 0:00:13]} 48. Kh3 {[%clk 0:00:24.2]} 48...
Ra7 {[%clk 0:00:14.5]} 49. Kh4 {[%clk 0:00:24.8]} 49... Rb7 {[%clk 0:00:16.2]}
50. g4 {[%clk 0:00:24.9]} 50... Ra7 {[%clk 0:00:17.9]} 51. g5 {[%clk 0:00:25.1]}
51... hxg5+ {[%clk 0:00:19.4]} 52. fxg5 {[%clk 0:00:25.9]} 52... Ra4+ {[%clk
0:00:21.1]} 53. Kg3 {[%clk 0:00:26.8]} 53... Ra3+ {[%clk 0:00:22.5]} 54. Kf4
{[%clk 0:00:27.8]} 54... Ra4+ {[%clk 0:00:24]} 55. Ke5 {[%clk 0:00:27.9]} 55...
Ra5+ {[%clk 0:00:23.5]} 56. Rd5 {[%clk 0:00:28.3]} 56... Ra7 {[%clk 0:00:23.3]}
57. Kf6 {[%clk 0:00:28.7]} 57... Ra6+ {[%clk 0:00:24]} 58. Kf5 {[%clk
0:00:29.6]} 58... Ra7 {[%clk 0:00:24.9]} 59. Ke6 {[%clk 0:00:30.3]} 59... Ra1
{[%clk 0:00:24.2]} 60. Rd7+ {[%clk 0:00:30.7]} 60... Kh8 {[%clk 0:00:25.6]} 61.
h6 {[%clk 0:00:31.1]} 61... Rf1 {[%clk 0:00:19.3]} 62. Rf7 {[%clk 0:00:26.6]}
62... Re1+ {[%clk 0:00:17.7]} 63. Kf6 {[%clk 0:00:26.7]} 63... Ra1 {[%clk
0:00:15.1]} 64. Rf8+ {[%clk 0:00:26.7]} 64... Kh7 {[%clk 0:00:16.4]} 65. g6+
{[%clk 0:00:27.8]} 65... Kxh6 {[%clk 0:00:18.2]} 66. Rh8# {[%clk 0:00:28.6]} 1-0

[Event "*** Titled Tuesday 3|2 Blitz"]
[Site "Chess.com"]
[Date "2016.01.05"]
[Round "3"]
[White "Zlatan56"]
[Black "swayamsm"]
[Result "1-0"]
[WhiteElo "2570"]
[BlackElo "2530"]
[TimeControl "180+2"]
[EndTime "11:35:53 PST"]
[Termination "Zlatan56 won by resignation"]

1. Nf3 {[%clk 0:02:37.6]} 1... e6 {[%clk 0:03:01.9]} 2. g3 {[%clk 0:02:38.6]}
2... Nf6 {[%clk 0:02:59]} 3. Bg2 {[%clk 0:02:40.5]} 3... c5 {[%clk 0:02:59.4]}
4. O-O {[%clk 0:02:41.9]} 4... Nc6 {[%clk 0:02:59.8]} 5. c4 {[%clk 0:02:42.9]}
5... Be7 {[%clk 0:02:58.6]} 6. d4 {[%clk 0:02:43.4]} 6... d5 {[%clk 0:02:14]} 7.
cxd5 {[%clk 0:02:43.5]} 7... exd5 {[%clk 0:02:12.3]} 8. Nc3 {[%clk 0:02:42.5]}
8... O-O {[%clk 0:02:12.9]} 9. Bg5 {[%clk 0:02:44]} 9... Be6 {[%clk 0:02:10.3]}
10. dxc5 {[%clk 0:02:41.9]} 10... Bxc5 {[%clk 0:02:11.2]} 11. Bxf6 {[%clk
0:02:41]} 11... Qxf6 {[%clk 0:02:09.4]} 12. Rc1 {[%clk 0:02:42.3]} 12... Rfd8
{[%clk 0:02:07.9]} 13. Qd2 {[%clk 0:02:28.5]} 13... h6 {[%clk 0:02:04.9]} 14.
Nb5 {[%clk 0:02:20.5]} 14... Bb4 {[%clk 0:02:03.7]} 15. Qc2 {[%clk 0:02:16.6]}
15... Rac8 {[%clk 0:02:03.1]} 16. Qb3 {[%clk 0:02:10.6]} 16... d4 {[%clk
0:01:44.6]} 17. Qa4 {[%clk 0:02:07.8]} 17... a6 {[%clk 0:01:42.5]} 18. Na7
{[%clk 0:01:51.9]} 18... Nxa7 {[%clk 0:01:41.6]} 19. Qxb4 {[%clk 0:01:52.8]}
19... Rb8 {[%clk 0:01:35.3]} 20. Rfd1 {[%clk 0:01:46.4]} 20... Nc6 {[%clk
0:01:35.4]} 21. Qb6 {[%clk 0:01:47.3]} 21... Bxa2 {[%clk 0:01:32.2]} 22. Nd2
{[%clk 0:01:37.2]} 22... Bd5 {[%clk 0:01:30.7]} 23. Bxd5 {[%clk 0:01:15.5]}
23... Rxd5 {[%clk 0:01:32.6]} 24. Ne4 {[%clk 0:01:14.8]} 24... Qe5 {[%clk
0:01:20]} 25. Nc5 {[%clk 0:01:08.9]} 25... Qxe2 {[%clk 0:01:19.3]} 26. Nd3
{[%clk 0:01:08.8]} 26... Rb5 {[%clk 0:01:06.8]} 27. Qc7 {[%clk 0:01:07]} 27...
h5 {[%clk 0:01:06.6]} 28. b4 {[%clk 0:00:56.5]} 28... h4 {[%clk 0:01:01.1]} 29.
Nf4 {[%clk 0:00:57]} 29... Qf3 {[%clk 0:00:53.9]} 30. Rd3 {[%clk 0:00:57.2]}
30... Qe4 {[%clk 0:00:52.3]} 31. Rd2 {[%clk 0:00:56.7]} 31... Rxb4 {[%clk
0:00:34.1]} 32. Re2 {[%clk 0:00:55.5]} 32... Qf3 {[%clk 0:00:31.1]} 33. Rce1
{[%clk 0:00:51.5]} 33... h3 {[%clk 0:00:23.7]} 34. Nxh3 {[%clk 0:00:49.6]} 34...
Rb5 {[%clk 0:00:21.5]} 35. Nf4 {[%clk 0:00:46.5]} 35... d3 {[%clk 0:00:20.6]}
36. Rd2 {[%clk 0:00:43.6]} 36... Rd8 {[%clk 0:00:22.1]} 37. Red1 {[%clk
0:00:44]} 37... Rb3 {[%clk 0:00:17.1]} 38. h4 {[%clk 0:00:38.6]} 38... Qe4
{[%clk 0:00:15.9]} 39. Rc1 {[%clk 0:00:35.9]} 39... a5 {[%clk 0:00:16.2]} 40.
Rxc6 {[%clk 0:00:35.5]} 40... Rb1+ {[%clk 0:00:16.8]} 41. Rc1 {[%clk 0:00:34.6]}
41... Rxc1+ {[%clk 0:00:18.3]} 42. Qxc1 {[%clk 0:00:36.4]} 42... a4 {[%clk
0:00:19.9]} 43. Qc3 {[%clk 0:00:26.5]} 43... b5 {[%clk 0:00:20.1]} 44. Rxd3
{[%clk 0:00:25.1]} 44... Rxd3 {[%clk 0:00:19.9]} 45. Qxd3 {[%clk 0:00:26.7]}
45... Qxd3 {[%clk 0:00:19.6]} 46. Nxd3 {[%clk 0:00:27.1]} 46... f6 {[%clk
0:00:19.6]} 47. Kf1 {[%clk 0:00:27]} 47... Kf7 {[%clk 0:00:21.2]} 48. Ke2 {[%clk
0:00:28.1]} 48... Ke6 {[%clk 0:00:23.1]} 49. Nb4 {[%clk 0:00:29.5]} 49... Ke5
{[%clk 0:00:21.2]} 50. Ke3 {[%clk 0:00:27.3]} 50... f5 {[%clk 0:00:22.4]} 51.
f4+ {[%clk 0:00:25.6]} 51... Kf6 {[%clk 0:00:21.4]} 52. Kf3 {[%clk 0:00:21]}
52... Kg6 {[%clk 0:00:18.8]} 53. g4 {[%clk 0:00:21.1]} 53... fxg4+ {[%clk
0:00:20.7]} 54. Kxg4 {[%clk 0:00:22.6]} 54... Kf6 {[%clk 0:00:22.6]} 55. h5
{[%clk 0:00:23.6]} 55... Ke6 {[%clk 0:00:23.4]} 56. f5+ {[%clk 0:00:22.4]} 56...
Kd6 {[%clk 0:00:19.9]} 57. f6 {[%clk 0:00:20.7]} 57... Kc5 {[%clk 0:00:21.6]}
58. fxg7 {[%clk 0:00:18.1]} 58... Kxb4 {[%clk 0:00:22.4]} 59. g8=Q {[%clk
0:00:19.2]} 1-0

[Event "*** Titled Tuesday 3|2 Blitz"]
[Site "Chess.com"]
[Date "2016.01.05"]
[Round "3"]
[White "LePlusMortel"]
[Black "GeorgMeier"]
[Result "0-1"]
[WhiteElo "2460"]
[BlackElo "2682"]
[TimeControl "180+2"]
[EndTime "11:36:32 PST"]
[Termination "GeorgMeier won by resignation"]

1. Nf3 {[%clk 0:03:01.9]} 1... d5 {[%clk 0:02:59.4]} 2. g3 {[%clk 0:03:01.4]}
2... Bg4 {[%clk 0:02:59.4]} 3. Bg2 {[%clk 0:03:02.2]} 3... e6 {[%clk 0:03:00.7]}
4. O-O {[%clk 0:03:03]} 4... Nf6 {[%clk 0:02:54.1]} 5. d3 {[%clk 0:03:04.5]}
5... Be7 {[%clk 0:02:54.6]} 6. c4 {[%clk 0:03:05.5]} 6... O-O {[%clk 0:02:54.2]}
7. Nc3 {[%clk 0:03:04.5]} 7... c6 {[%clk 0:02:48.5]} 8. Qb3 {[%clk 0:02:39.9]}
8... Qb6 {[%clk 0:02:42]} 9. Be3 {[%clk 0:02:40.5]} 9... Qxb3 {[%clk 0:02:37.9]}
10. axb3 {[%clk 0:02:42.4]} 10... a6 {[%clk 0:02:39.2]} 11. Ne5 {[%clk
0:02:22.5]} 11... Nbd7 {[%clk 0:02:40]} 12. Nxg4 {[%clk 0:02:21.4]} 12... Nxg4
{[%clk 0:02:41.1]} 13. Bd2 {[%clk 0:01:49]} 13... Nc5 {[%clk 0:02:39.3]} 14. Ra3
{[%clk 0:01:50]} 14... Nd7 {[%clk 0:02:40.1]} 15. Ra2 {[%clk 0:01:46.1]} 15...
Nc5 {[%clk 0:02:16.7]} 16. Ra3 {[%clk 0:01:43.7]} 16... f5 {[%clk 0:02:16.6]}
17. b4 {[%clk 0:01:22.9]} 17... Nd7 {[%clk 0:02:12.2]} 18. c5 {[%clk 0:01:23.9]}
18... Ndf6 {[%clk 0:01:47.2]} 19. h3 {[%clk 0:01:17.3]} 19... Ne5 {[%clk
0:01:48.1]} 20. f4 {[%clk 0:01:14.3]} 20... Nf7 {[%clk 0:01:45.8]} 21. e4 {[%clk
0:01:13.6]} 21... Rad8 {[%clk 0:01:29.7]} 22. e5 {[%clk 0:01:12.3]} 22... Nh5
{[%clk 0:01:24.7]} 23. Kh2 {[%clk 0:01:13]} 23... g5 {[%clk 0:01:20.5]} 24. Ne2
{[%clk 0:00:59.3]} 24... gxf4 {[%clk 0:01:08.7]} 25. gxf4 {[%clk 0:00:58.5]}
25... Nh8 {[%clk 0:01:08.9]} 26. Bf3 {[%clk 0:00:52.7]} 26... Ng7 {[%clk
0:01:08.9]} 27. Rg1 {[%clk 0:00:46.5]} 27... Ng6 {[%clk 0:01:09.3]} 28. Be1
{[%clk 0:00:43.3]} 28... Kf7 {[%clk 0:01:09.9]} 29. Bf2 {[%clk 0:00:34.2]} 29...
Rg8 {[%clk 0:01:10.1]} 30. Raa1 {[%clk 0:00:35.2]} 30... Ne8 {[%clk 0:01:07.9]}
31. Bh5 {[%clk 0:00:30.6]} 31... Ng7 {[%clk 0:01:07.6]} 32. Bf3 {[%clk
0:00:30.9]} 32... Ne8 {[%clk 0:00:48.1]} 33. Bh5 {[%clk 0:00:31.4]} 33... Nc7
{[%clk 0:00:48.9]} 34. Rg2 {[%clk 0:00:28.9]} 34... Rg7 {[%clk 0:00:49.1]} 35.
Rag1 {[%clk 0:00:29.7]} 35... Rdg8 {[%clk 0:00:50.2]} 36. h4 {[%clk 0:00:27.6]}
36... Kf8 {[%clk 0:00:47.5]} 37. Kh3 {[%clk 0:00:29.1]} 37... Nb5 {[%clk
0:00:46.4]} 38. Bf3 {[%clk 0:00:27.4]} 38... Bd8 {[%clk 0:00:37.4]} 39. h5
{[%clk 0:00:27.5]} 39... Nh8 {[%clk 0:00:37.4]} 40. Rxg7 {[%clk 0:00:29.4]}
40... Rxg7 {[%clk 0:00:39.3]} 41. Rxg7 {[%clk 0:00:29.4]} 41... Kxg7 {[%clk
0:00:40.8]} 42. Nc3 {[%clk 0:00:16.9]} 42... Nxc3 {[%clk 0:00:35.8]} 43. bxc3
{[%clk 0:00:18.8]} 43... a5 {[%clk 0:00:37.2]} 44. bxa5 {[%clk 0:00:19.8]} 44...
Bxa5 {[%clk 0:00:38.2]} 45. c4 {[%clk 0:00:17.5]} 45... dxc4 {[%clk 0:00:37.8]}
46. dxc4 {[%clk 0:00:19.4]} 46... Bd2 {[%clk 0:00:38]} 47. Kg3 {[%clk
0:00:17.1]} 47... Nf7 {[%clk 0:00:34.8]} 48. Be2 {[%clk 0:00:17]} 48... Nh6
{[%clk 0:00:33.2]} 49. Kf3 {[%clk 0:00:16.5]} 49... Ng4 {[%clk 0:00:33.8]} 50.
Bh4 {[%clk 0:00:11.4]} 50... Kh6 {[%clk 0:00:32.8]} 51. Be7 {[%clk 0:00:10.2]}
51... Kxh5 {[%clk 0:00:33.8]} 52. Kg3 {[%clk 0:00:11.9]} 52... Kg6 {[%clk
0:00:22.7]} 53. Bxg4 {[%clk 0:00:12.7]} 53... fxg4 {[%clk 0:00:24.6]} 54. Kxg4
{[%clk 0:00:14.6]} 54... h5+ {[%clk 0:00:26.2]} 55. Kf3 {[%clk 0:00:15.2]} 55...
Kf5 {[%clk 0:00:27.3]} 56. Bg5 {[%clk 0:00:16.3]} 56... Bc3 {[%clk 0:00:28]} 57.
Bh6 {[%clk 0:00:17.1]} 57... Bb4 {[%clk 0:00:27]} 58. Bf8 {[%clk 0:00:17.9]}
58... Bd2 {[%clk 0:00:27.8]} 59. Bh6 {[%clk 0:00:18.9]} 59... h4 {[%clk
0:00:28.4]} 60. Bg5 {[%clk 0:00:16.9]} 60... h3 {[%clk 0:00:29.7]} 61. Kg3
{[%clk 0:00:18.4]} 61... Bxf4+ {[%clk 0:00:26.1]} 62. Bxf4 {[%clk 0:00:18.6]}
62... h2 {[%clk 0:00:27.5]} 0-1

[Event "*** Titled Tuesday 3|2 Blitz"]
[Site "Chess.com"]
[Date "2016.01.05"]
[Round "3"]
[White "nonsopolo1"]
[Black "Grootneus"]
[Result "0-1"]
[WhiteElo "2062"]
[BlackElo "2017"]
[TimeControl "180+2"]
[EndTime "11:37:04 PST"]
[Termination "Grootneus won by resignation"]

1. e4 {[%clk 0:02:08.2]} 1... c5 {[%clk 0:02:55]} 2. Nf3 {[%clk 0:02:08.5]} 2...
Nc6 {[%clk 0:02:56.2]} 3. d4 {[%clk 0:02:09]} 3... cxd4 {[%clk 0:02:57.8]} 4.
Nxd4 {[%clk 0:02:10]} 4... Nf6 {[%clk 0:02:59.3]} 5. Nc3 {[%clk 0:02:10.4]} 5...
e5 {[%clk 0:03:01]} 6. Ndb5 {[%clk 0:02:09.7]} 6... d6 {[%clk 0:03:02.5]} 7. Bg5
{[%clk 0:02:10.1]} 7... a6 {[%clk 0:03:04.1]} 8. Bxf6 {[%clk 0:02:09.5]} 8...
gxf6 {[%clk 0:03:04.3]} 9. Na3 {[%clk 0:02:09.5]} 9... b5 {[%clk 0:03:05.9]} 10.
Nd5 {[%clk 0:02:09.6]} 10... f5 {[%clk 0:03:07.5]} 11. exf5 {[%clk 0:02:02.9]}
11... Bxf5 {[%clk 0:03:07.8]} 12. c3 {[%clk 0:02:03.7]} 12... Bg7 {[%clk
0:03:03.7]} 13. Nc2 {[%clk 0:02:04.1]} 13... O-O {[%clk 0:02:59.8]} 14. a4
{[%clk 0:02:02.5]} 14... b4 {[%clk 0:02:42.5]} 15. Ncxb4 {[%clk 0:02:00.4]}
15... Nxb4 {[%clk 0:02:43.5]} 16. cxb4 {[%clk 0:02:00.6]} 16... e4 {[%clk
0:02:41]} 17. Qd2 {[%clk 0:01:56]} 17... Rc8 {[%clk 0:02:19.7]} 18. Bxa6 {[%clk
0:01:54.5]} 18... Rc6 {[%clk 0:02:00.6]} 19. Bb5 {[%clk 0:01:50]} 19... Rc8
{[%clk 0:01:50.8]} 20. O-O {[%clk 0:01:50.3]} 20... Be5 {[%clk 0:01:34.4]} 21.
h3 {[%clk 0:01:31.6]} 21... Kh8 {[%clk 0:01:31.1]} 22. Ne3 {[%clk 0:01:21.5]}
22... Be6 {[%clk 0:00:58.5]} 23. f4 {[%clk 0:01:06.5]} 23... exf3 {[%clk
0:00:27.1]} 24. Rxf3 {[%clk 0:01:06.3]} 24... Qh4 {[%clk 0:00:23.6]} 25. Qf2
{[%clk 0:00:47.9]} 25... Qd4 {[%clk 0:00:12.6]} 26. Rd1 {[%clk 0:00:44.6]} 26...
Qxb2 {[%clk 0:00:13.1]} 27. Qxb2 {[%clk 0:00:44.9]} 27... Bxb2 {[%clk
0:00:13.9]} 28. Rxd6 {[%clk 0:00:44.5]} 28... Rc1+ {[%clk 0:00:15]} 29. Kf2
{[%clk 0:00:39.8]} 29... Be5 {[%clk 0:00:15.4]} 30. Rd2 {[%clk 0:00:38.8]} 30...
Rb1 {[%clk 0:00:16.3]} 31. Nc2 {[%clk 0:00:37.4]} 31... Rc8 {[%clk 0:00:13.3]}
32. Bd3 {[%clk 0:00:34.1]} 32... Bc3 {[%clk 0:00:11.3]} 33. Re2 {[%clk
0:00:32.5]} 33... Bxb4 {[%clk 0:00:11.5]} 34. Nxb4 {[%clk 0:00:33]} 34... Rxb4
{[%clk 0:00:13.4]} 35. Bb5 {[%clk 0:00:33.7]} 35... Bd5 {[%clk 0:00:12.9]} 36.
Ra3 {[%clk 0:00:31]} 36... Rg8 {[%clk 0:00:13.3]} 37. g4 {[%clk 0:00:31.4]}
37... Rg6 {[%clk 0:00:13.5]} 38. Rd2 {[%clk 0:00:31.7]} 38... Rf6+ {[%clk
0:00:14.3]} 39. Ke2 {[%clk 0:00:27.6]} 39... Bc4+ {[%clk 0:00:08.9]} 40. Bxc4
{[%clk 0:00:27.9]} 40... Rxc4 {[%clk 0:00:10.8]} 41. a5 {[%clk 0:00:29]} 41...
Ra6 {[%clk 0:00:09.9]} 42. Rd5 {[%clk 0:00:29.3]} 42... Kg7 {[%clk 0:00:07.6]}
43. Kd3 {[%clk 0:00:29.4]} 43... Rf4 {[%clk 0:00:08.7]} 44. Ke3 {[%clk
0:00:29.8]} 44... Rb4 {[%clk 0:00:09.2]} 45. Rh5 {[%clk 0:00:29.3]} 45... Kg6
{[%clk 0:00:09.9]} 46. Kf3 {[%clk 0:00:29.3]} 46... h6 {[%clk 0:00:10.5]} 47.
Kg3 {[%clk 0:00:29.7]} 47... Rc4 {[%clk 0:00:11.4]} 48. Rf5 {[%clk 0:00:29.8]}
48... Rb4 {[%clk 0:00:12.5]} 49. Rh5 {[%clk 0:00:30.6]} 49... Rc4 {[%clk
0:00:13]} 50. Rb5 {[%clk 0:00:31.2]} 50... Rd4 {[%clk 0:00:12]} 51. Rab3 {[%clk
0:00:30.1]} 51... Ra8 {[%clk 0:00:06.8]} 52. Ra3 {[%clk 0:00:28.4]} 52... Ra6
{[%clk 0:00:07.2]} 53. Rab3 {[%clk 0:00:27.7]} 53... f6 {[%clk 0:00:08.2]} 54.
Ra3 {[%clk 0:00:25.3]} 54... Rc4 {[%clk 0:00:09.1]} 55. Rd5 {[%clk 0:00:24.9]}
55... Rb4 {[%clk 0:00:09.1]} 56. Rc5 {[%clk 0:00:23.5]} 56... Rd4 {[%clk
0:00:10.1]} 57. Kf3 {[%clk 0:00:22.8]} 57... Rb4 {[%clk 0:00:10.8]} 58. Rf5
{[%clk 0:00:22.2]} 58... Rc4 {[%clk 0:00:11.1]} 59. h4 {[%clk 0:00:21.3]} 59...
Rb4 {[%clk 0:00:10.9]} 60. Kg3 {[%clk 0:00:21.2]} 60... Rc4 {[%clk 0:00:11.6]}
61. h5+ {[%clk 0:00:17.9]} 61... Kf7 {[%clk 0:00:12.4]} 62. Rc5 {[%clk
0:00:13.8]} 62... Rxc5 {[%clk 0:00:11.9]} 0-1